Cogmind - Beta 16 @@@ ROGUE MODE // 2025.10.26 @ 04:00:56 Player: x'z Result: Destroyed by Y-45 Defender with Beam Rifle Performance ------------- Evolutions (1) 500 Regions Visited (2) 400 Robots Destroyed (19) 95 Value Destroyed (390) 390 Prototype IDs (4) 80 Alien Tech Used (0) 0 Bonus (0) 0 TOTAL SCORE: 1465 Bonus ------- None Cogmind --------- Core Integrity 0/400 Matter 280/300 Energy 276/280 System Corruption 3% Temperature Cool (9) Movement Core (150) Ox2 Location -9/Materials Parts ------- > --- POWER (1) -------- Cooled Ion Engine > --- PROPULSION (3) --- (None) > --- UTILITY (3) ------ Visual Processing Unit Seismic Detector > --- WEAPON (2) ------- (None) > --- INVENTORY (5) ---- Improved Heat Sink Huge Storage Unit Sensor Array Signal Interpreter ECM Suite Peak State ------------ > --- POWER ------------ Ion Engine > --- PROPULSION ------- Light Treads Light Treads > --- UTILITY ---------- Huge Storage Unit Visual Processing Unit Seismic Detector > --- WEAPON ----------- Improved Assault Rifle Mining Claw > --- INVENTORY -------- Improved Heat Sink Sensor Array Signal Interpreter ECM Suite Light Assault Rifle [Rating: 11] Favorites ----------- Power Ion Engine Engine Ion Engine Propulsion Light Treads Treads Light Treads Wheel Wheel Utility Seismic Detector Device Seismic Detector Storage Huge Storage Unit Processor Visual Processing Unit Protection Light Armor Plating Weapon Mining Claw Energy Gun Particle Gun Ballistic Gun Light Assault Rifle Slashing Weapon Mining Claw Build | -11 -10 -9 ------- Run | Yrd Mat Mat Slots Evolved 2 | . . 2 Power . | . . . Propulsion 1 | . . 1 Utility 1 | . . 1 Weapon . | . . . Parts Attached 20 | 9 7 4 Power 3 | 1 1 1 Engine 3 | 1 1 1 Core . | . . . Reactor . | . . . Propulsion 5 | 3 2 . Treads 2 | . 2 . Leg . | . . . Wheel 3 | 3 . . Hover . | . . . Flight . | . . . Utility 7 | 3 2 2 Device 3 | 2 1 . Storage 2 | 1 1 . Processor 1 | . . 1 Hackware . | . . . Protection 1 | . . 1 Artifact . | . . . Weapon 5 | 2 2 1 Energy Gun 1 | . 1 . Energy Cannon . | . . . Ballistic Gun 3 | 2 . 1 Ballistic Cannon . | . . . Launcher . | . . . Special Weapon . | . . . Impact Weapon . | . . . Slashing Weapon 1 | . 1 . Piercing Weapon . | . . . Special Melee Weapon . | . . . Unidentified Prototypes 2 | . . 2 Parts Lost 10 | . 3 7 Power 1 | . . 1 Propulsion 4 | . 2 2 Utility 2 | . 1 1 Weapon 3 | . . 3 Highest Loss Streak 3 | . 2 3 To Critical Strikes . | . . . Average Backups 4 | 2 4 5 Power . | . . . Propulsion . | 1 1 . Utility 3 | . 2 4 Weapon . | . . . Tool/Special . | . . . Unused Backups 5 | . 2 3 Power 1 | . 1 . Propulsion . | . . . Utility 4 | . 1 3 Weapon . | . . . Tool/Special . | . . . Average Slot Usage (%) 68 | . 94 58 Engine 6 | . 14 3 Treads 6 | . 7 5 Wheel 4 | . 16 . Device 14 | . 23 11 Storage 7 | . 3 9 Processor 7 | . . 11 Ballistic Gun 10 | . 17 7 Slashing Weapon 9 | . 9 9 Peak Build Rating 11 | 9 9 11 Average Rating 7 | 5 6 7 On Entrance 5 | . 9 7 Avg Prop Armor Cover (%) . | . . . Naked Turns . | . . . Heaviest Build 91 | 12 89 91 Greatest Support 40 | 26 40 40 Greatest Overweight (x) 28 | 1 3 28 Average Overweight (x) 2 | . . 7 Largest Inventory Capacity 25 | 8 25 25 Average Capacity 17 | 7 10 22 Most Carried 6 | 5 5 6 Average Carried 4 | 2 4 5 Final Capacity 25 | 5 25 5 Final Carried 5 | 4 3 5 Class Distribution -------------------- 100% | Mutant Dominant Class ---------------- Mutant | -10/Materials Mutant | -9/Materials Resources | -11 -10 -9 ----------- Run | Yrd Mat Mat Matter Collected 487 | 342 117 28 Remotely . | . . . Salvage Created 639 | 201 233 205 Parts 48 | 21 20 7 Haulers Intercepted . | . . . Recyclers Shooed . | . . . Parts Field Recycled . | . . . Retrieved Matter . | . . . Parts Self-Destructed . | . . . Prevented . | . . . Parts Restored . | . . . Kills | -11 -10 -9 ------- Run | Yrd Mat Mat Combat Hostiles Destroyed 11 | . 7 4 Melee 9 | . 5 4 Guns 2 | . 2 . Classes Destroyed 8 | 3 3 2 Worker 2 | 2 . . Tunneler 4 | 4 . . Recycler 1 | 1 . . Watcher 1 | . 1 . Swarmer 3 | . 3 . Grunt 6 | . 4 2 Brawler 1 | . . 1 Sentry 1 | . . 1 Best Kill Streak 7 | 7 3 2 Combat Bots Only 3 | . 3 2 Max Kills in Single Turn 1 | 1 1 1 Gunslinging . | . . . Exploded . | . . . Melee 1 | . 1 1 Uniques/NPCs Destroyed . | . . . Combat | -11 -10 -9 -------- Run | Yrd Mat Mat Hostile Shots Fired 166 | . 65 101 Missed 36 | . 15 21 Hits 130 | . 50 80 Melee 4 | . . 4 Projectile 126 | . 50 76 Critical Strikes 1 | . . 1 Damage Taken 1686 | . 508 1178 Core 551 | . 147 404 Absorbed by Shields . | . . . Core Remaining (%) 70 | 100 41 . Volleys Fired 28 | 13 13 2 Largest 2 | 2 2 1 Hottest 40 | 40 40 23 Shots Fired 54 | 26 26 2 Gun 54 | 26 26 2 Cannon . | . . . Launcher . | . . . Special . | . . . Kinetic 54 | 26 26 2 Thermal . | . . . Explosive . | . . . Electromagnetic . | . . . Robot Hit Streak 7 | 5 7 2 Robot Miss Streak 3 | 2 3 . Penetration Max . | . . . Secondary Targets . | . . . Shots Hit Robots 55 | 14 25 16 Core Hits 25 | 9 11 5 Critical Kills . | . . . Critical Parts Destroyed . | . . . Critical Strikes . | . . . Melee Attacks 47 | . 14 33 Impact . | . . . Slashing 47 | . 14 33 Piercing . | . . . Sneak Attacks . | . . . Combat Hostiles . | . . . Follow-up Attacks . | . . . Damage Inflicted 928 | 181 399 348 Guns 379 | 181 162 36 Cannons . | . . . Explosions . | . . . Melee 549 | . 237 312 Ramming . | . . . Kinetic 379 | 181 162 36 Thermal . | . . . Explosive . | . . . Electromagnetic . | . . . Impact . | . . . Slashing 549 | . 237 312 Piercing . | . . . Highest Corruption 3 | . . 3 Average Corruption 3 | . . 3 Corruption Purged . | . . . Corruption Blocked . | . . . Effects 3 | . . 3 Matter Fused 1 | . . 1 Heat Flow Errors 1 | . . 1 Energy Discharges 1 | . . 1 Overload Shots . | . . . Overflow Damage 5 | . 5 . Projectiles . | . . . Explosions . | . . . Melee 5 | . 5 . Knockbacks . | . . . Impact . | . . . Kinetic . | . . . Secondary . | . . . Self-Inflicted Damage . | . . . Shots . | . . . Rammed . | . . . Targets Rammed . | . . . Kicked . | . . . Crushed . | . . . Highest Temperature 146 | . 19 146 Average Temperature 24 | . 9 65 Received Heat Transfer 516 | . 150 366 Siege Activations . | . . . Martial Activations . | . . . Shielding Activations . | . . . Robots Disrupted . | . . . Combat Hostiles . | . . . Robots Corrupted . | . . . Combat Hostiles . | . . . Parts Fried . | . . . Impact Corruptions . | . . . Robots Melted . | . . . Combat Hostiles . | . . . Parts Melted . | . . . Heat Transferred . | . . . Parts Sabotaged . | . . . Parts Stolen . | . . . Parts Stripped . | . . . Power Chain Reactions . | . . . Alert | -11 -10 -9 ------- Run | Yrd Mat Mat Maximum Alert Level . | . . . Low Security (%) 100 | 100 100 100 Level 1 . | . . . Level 2 . | . . . Level 3 . | . . . Level 4 . | . . . Level 5 . | . . . High Security . | . . . Max Security . | . . . Peak Influence 82 | 15 82 40 Initial 9 | . 6 9 Average 11 | 3 30 4 Influence Increases 352 | 35 192 125 Destroy 0b10 Robot/C 220 | . 140 80 Destroy 0b10 Robot/NC 40 | 35 5 . Destroy Leader 62 | . 42 20 Successful Hack 12 | . 5 7 Disable Machine 15 | . . 15 Destroy Structure 3 | . . 3 Influence Decreases 352 | 25 180 147 Entered New Map 17 | . 4 13 Time Decay 283 | 25 156 102 Lost Part 52 | . 20 32 Squads Dispatched 3 | . 3 . Investigation . | . . . Extermination . | . . . Reinforcement 3 | . 3 . Assault . | . . . Garrison . | . . . Intercept . | . . . Searches Triggered . | . . . Construction Impeded . | . . . Haulers Reinforced . | . . . Active Scanning Responses . | . . . Cargo Convoy Interrupts . | . . . Stealth | -11 -10 -9 --------- Run | Yrd Mat Mat Distress Signals 2 | . . 2 Communications Jammed . | . . . Distress Signals . | . . . Times Spotted 27 | . 18 9 Peak Tracking Total 4 | . 4 4 Tactical Retreats 2 | . 2 . ECM-based Alert Blocks 5 | . 5 . Traps | -11 -10 -9 ------- Run | Yrd Mat Mat Traps Triggered . | . . . Indirectly . | . . . Trap Hack Attempts . | . . . Triggered . | . . . Disarmed . | . . . Reprogrammed . | . . . Reused . | . . . Traps Extracted . | . . . Installed . | . . . Triggered . | . . . Machines | -11 -10 -9 ---------- Run | Yrd Mat Mat Machines Disabled 1 | . . 1 Max in Single Turn 1 | . . 1 Machines Repaired . | . . . Machines Dismantled . | . . . Machines Sabotaged . | . . . Overloaded Fab Kills . | . . . Hacking | -11 -10 -9 --------- Run | Yrd Mat Mat Machines Accessed 4 | . 3 1 Terminals 4 | . 3 1 Fabricators . | . . . Repair Stations . | . . . Recycling Units . | . . . Scanalyzers . | . . . Garrison Access . | . . . Total Hacks 8 | . 5 3 Successful 6 | . 4 2 Failed 2 | . 1 1 Catastrophic . | . . . Database Lockouts . | . . . Manual . | . . . Terminals 8 | . 5 3 Fabricators . | . . . Repair Stations . | . . . Recycling Units . | . . . Scanalyzers . | . . . Garrison Access . | . . . Terminal Hacks 6 | . 4 2 Prototype ID Bank 2 | . 2 . Emergency Access Points 1 | . . 1 Security Status 1 | . . 1 Hauler Manifests 1 | . 1 . Zone Layout 1 | . 1 . Fabricator Hacks . | . . . Repair Station Hacks . | . . . Recycling Unit Hacks . | . . . Scanalyzer . | . . . Garrison Access Hacks . | . . . Unauthorized Hacks . | . . . Terminals . | . . . Fabricators . | . . . Repair Stations . | . . . Recycling Units . | . . . Scanalyzers . | . . . Garrison Access . | . . . Data Cores Recovered . | . . . Used . | . . . Hacking Detections 2 | . 2 . Full Trace Events . | . . . Feedback Events . | . . . Feedback Blocked . | . . . Robot Schematics Acquired . | . . . Robots Built . | . . . Authchips . | . . . Time . | . . . Total Robot Build Rating . | . . . Part Schematics Acquired . | . . . Parts Built . | . . . Authchips . | . . . Time . | . . . Total Part Build Rating . | . . . Part Studies Acquired . | . . . Parts Repaired . | . . . Time . | . . . Parts Recycled . | . . . Recycled Matter . | . . . Retrieved Matter . | . . . Retrieved Components . | . . . Parts Scanalyzed . | . . . Part Schematics Acquired . | . . . Parts Damaged . | . . . Bothacking | -11 -10 -9 ------------ Run | Yrd Mat Mat Used RIF Installer . | . . . Robots Hacked . | . . . Non-combat . | . . . Combat . | . . . Robot Hacks Applied . | . . . Relay Couplers Released . | . . . Fabnet Peak Effective % . | . . . Robots Rewired . | . . . Allies Hacked . | . . . Hacks Repelled . | . . . Allies | -11 -10 -9 -------- Run | Yrd Mat Mat Total Allies . | . . . Largest Group . | . . . Highest-Rated Group . | . . . Highest-Rated Ally . | . . . Total Orders . | . . . Ally Attacks . | . . . Total Damage . | . . . Kills . | . . . Allies Corrupted . | . . . Allies Melted . | . . . Intel | -11 -10 -9 ------- Run | Yrd Mat Mat Active Infowar (turns) 1266 | 42 340 884 Optics 884 | . . 884 Terrain 91 | 42 49 . Seismic 1238 | 14 340 884 ECM 167 | . 167 . Robot Analysis Total . | . . . Derelict Logs Recovered . | . . . Drone Launches . | . . . Drone Recoveries . | . . . Exploration | -11 -10 -9 ------------- Run | Yrd Mat Mat Turns Passed 1334 | 110 340 884 Spaces Moved 427 | 57 206 164 Core 141 | 21 6 114 Treads 78 | . 28 50 Legs . | . . . Wheels 208 | 36 172 . Hover . | . . . Flight . | . . . Fastest Speed 50 | 50 80 100 Average Speed 244 | 89 116 460 Slowest Speed 1450 | 100 320 1450 Overloaded Moves . | . . . Propulsion Burnouts . | . . . Robots Hopped . | . . . Potential Cave-ins . | . . . Cave-ins Triggered 1 | . . 1 Exploration Rate (%) 21 | 4 48 13 Regions Visited 2 Branch Regions . Pre-discovered Areas . | . . . Known Exits Taken . | . . . Unknown Exits Taken 2 | 1 1 . Scrap Searched . | . . . Spaces Dug 6 | . . 6 Terrain Destroyed 6 | . . 6 Melee 6 | . . 6 Projectile . | . . . AOE . | . . . Terrain Rammed . | . . . Walls Destroyed . | . . . Machines Disabled . | . . . Actions | -11 -10 -9 --------- Run | Yrd Mat Mat Total 573 | 91 259 223 Wait 23 | . 8 15 Move 425 | 56 205 164 Hop . | . . . Pick Up 21 | 12 5 4 Fast Attach 4 | . 3 1 Attach 12 | 7 3 2 Detach . | . . . Swap 5 | 2 1 2 Drop 8 | 1 7 . Fire 28 | 13 13 2 Melee 47 | . 14 33 Ram . | . . . Kick . | . . . Crush . | . . . Escape Stasis . | . . . Rewire . | . . . Trap . | . . . Miscellaneous . | . . . Route ------- -11/Scrapyard -10/Materials (discovered 2 exits: *Mat x2) -9/Materials History --------- Turn | Location | Event 7 | -11/Scrapyard | Discovered new exit (range 15) 111 | -11/Scrapyard | Entered Materials 212 | -10/Materials | Discovered new exit (range 16) 305 | -10/Materials | Build established: Mutant 326 | -10/Materials | Core integrity fell below 50% 397 | -10/Materials | Discovered new exit (range 16) 451 | -10/Materials | Entered another Materials area 451 | -9/Materials | Evolved 2 slots: Propulsion x1, Utility x1 701 | -9/Materials | Lost 3 parts (1p2n) 1030 | -9/Materials | Crushed by falling debris 1172 | -9/Materials | Core integrity fell below 50% 1262 | -9/Materials | Core integrity fell below 20% 1335 | -9/Materials | Destroyed by Y-45 Defender with Beam Rifle Last Messages --------------- W-16 Scout sends out distress signal. System corrupted: Heat flow error (+174). Mining Claw destroyed. Lgt. Assault Rifle destroyed. Acquired Prototype Engine. Identified Cld. Ion Engine. Connecting with Terminal... >>Access(Emergency) Found 2 emergency access doors: (58,51) (58,47) Map updated. >>Enumerate(Guards) Retrieving latest reported positions... Security request, restricting to local area... Found 2 active security squads. Downloaded coordinate data. Lgt. Armor Plating destroyed. Critical hit (Burn: +37). System corrupted: Energy discharge (-103). Map ----- +----------------------------------------------------+ | ?????????????????????????????????????????????????? | | ?????????????????????????????????????????????????? | | ?????????????????????????????????????????????????? | | ?????????????????????????????????????????????????? | | ?????????????????????????????????????????????????? | | ?????????????????????????????????????????????????? | | ??????????#####??????????????????????????????????? | | ??????????# #??????????????????????????????????? | | ??????????# #??????????????????????????????????? | | ??????????# #??????????????????????????????????? | | ??????????# #??????????????????????????????????? | | ??????????# #??????????????????????????????????? | | ########### #??????????????????????????????????? | | ## ##?????????????????????????????????? | | # #?????????????????????????????????? | | # #?????????????????????????????????? | | + #?????????????????????????????????? | | # #?????????????????????????????????? | | """ """ # #?????????????????????????????????? | | """ """ ## ##?????????????????????????????????? | | """ """ ## #??????????????????????????????????? | | ########### #??????????????????????????????????? | | # ##########+#+##????????????????????? | | """ ""# #????????????????????? | | """"" T"# #????????????????????? | | """" ""# Y @ #????????????????????? | | """"" ## ####+########+##????????????????????? | | "" % %## #?# ! #???????????????????????????? | | % % ## #?# #???????????????????????????? | | ######+##### #?# #???????????????????????????? | | ????# % #### ### """ #???????????????????????????? | | ????# ## # """ #???????????????????????????? | | ????# ## # """ #???????????????????????????? | | ????# + #???????????????????????????? | | ????# ## # #???????????????????????????? | | ????# ## # " #???????????????????????????? | | ????# ### ## T #???????????????????????????? | | ????# #?# ## " #???????????????????????????? | | ???? #?# ## #???????????????????????????? | | ???## #?# ####/###???????????????????????????? | | ????# #?# #??# #?????????????????????????????? | | ????# #?# #??# #?????????????????????????????? | | ????# #?# #??# #?????????????????????????????? | | ????# #?# ####/###???????????????????????????? | | ????# ??# # ^ #???????????????????????????? | | ????# ??# # #???????????????????????????? | | ????# ??# / """ #???????????????????????????? | | ????+ ??# # """ #???????????????????????????? | | ????? ??# # """ #???????????????????????????? | | ????? ??# # #???????????????????????????? | +----------------------------------------------------+ Best States ------------- Heat Dissipation 28 Energy Generation 14 Energy Capacity 280 Matter Stores 300 Matter Capacity 300 Sight Range 18 Terrain Scan Range 16 Terrain Scan Density 10 ECM Strength 1 Armor Coverage 150 Evasion (%) 44 Recoil Reduction 2 Item Schematics ----------------- None Robot Schematics ------------------ None Fabricated ------------ Nothing Repaired ---------- Nothing Studied --------- None Alien Tech Used ----------------- None Achievements -------------- Unlikely Earthworm Challenges ------------ None Game ------ Seed MobileFieldthrustBallwheel Manual? 0 Play Time 00:11:49 Cumulative 5.0 hours Start 2025.10.26 @ 03:49:45 End 2025.10.26 @ 04:00:56 Sessions 1 Manual Loads 0 Difficulty Rogue Special Mode None Game No. 16 Rogue 16 Adventurer 0 Explorer 0 Win Type - Total 0 Types 0/0/0/0/0/0/0/0/0/0 Lore% 2 Gallery% 10 Achievement% 10 Wizard Run 0 Options --------- Layout 1 ASCII 0 Keyboard 0 Movement Numpad Keybinds 0 Fullscreen 1 Font 32/SmallcapsGlow Map View 50x35 Zoom Use 0% Tactical HUD 0 Map Filters NONE Filters NONE Steam 1 RUN: 2f9747dc-7662-487d-b10d-d2d1a54795e5